fUST/lending_fUST_20250320
["ID","MTS","AMOUNT","RATE_DAILY","PERIOD"]
[356447901,1742461877093,-500.0,0.00033698,21]
[356447902,1742461877104,-500.0,0.00033698,21]
[356447903,1742461877114,-500.0,0.00033698,21]
[356447904,1742461877124,-540.01,0.00033698,21]
[356447905,1742461877134,-529.79,0.00033698,21]
[356447906,1742461877145,-500.0,0.00033698,14]
[356447907,1742461877155,-500.0,0.00033698,21]
[356447908,1742461877165,-552.74,0.00033698,21]
[356447909,1742461877174,-792.16,0.00033698,21]
[356447910,1742461877184,-500.0,0.00033698,21]
[356447911,1742461877194,-500.0,0.00033698,21]
[356447912,1742461877205,-1685.63,0.00033698,21]
[356447913,1742461877214,-500.0,0.00033698,21]
[356447914,1742461877224,-629.27772941,0.00033698,21]
[356447915,1742461877234,-583.69,0.00033698,21]
[356447916,1742461877243,-500.0,0.00033698,21]
[356447917,1742461877253,-1092.59,0.00033698,21]
[356447918,1742461877263,-649.31,0.00033698,21]
[356447919,1742461877273,-500.0,0.00033698,21]
[356447920,1742461877283,-500.0,0.00033698,21]
[356447921,1742461877292,-500.0,0.00033698,21]
[356447922,1742461877302,-500.0,0.00033698,21]
[356447923,1742461877312,-500.0,0.00033698,21]
[356447924,1742461877322,-500.0,0.00033698,21]
[356447925,1742461877331,-500.0,0.00033698,21]
[356447926,1742461877341,-1920.45,0.00033698,21]
[356447927,1742461877350,-575.54,0.00033698,21]
[356447928,1742461877359,-533.57,0.00033698,21]
[356447929,1742461877369,-500.0,0.00033698,21]
[356447930,1742461877379,-500.0,0.00033698,21]
[356447931,1742461877388,-572.42486232,0.00033698,21]
[356447932,1742461877398,-500.0,0.00033698,21]
[356447933,1742461877408,-1325.8,0.00033698,21]
[356447934,1742461877417,-500.0,0.00033698,21]
[356447935,1742461877427,-500.0,0.00033698,21]
[356447936,1742461877436,-500.0,0.00033698,21]
[356447937,1742461877446,-500.0,0.00033698,21]
[356447938,1742461877455,-1482.65,0.00033698,21]
[356447939,1742461877465,-500.0,0.00033698,21]
[356447940,1742461877475,-500.0,0.00033698,21]
[356447941,1742461877484,-500.0,0.00033698,21]
[356447942,1742461877494,-500.0,0.00033698,21]
[356447943,1742461877504,-1002.11,0.00033698,21]
[356447944,1742461877514,-500.0,0.00033698,21]
[356447945,1742461877524,-500.0,0.00033698,21]
[356447946,1742461877533,-500.0,0.00033698,21]
[356447947,1742461877543,-500.0,0.00033698,21]
[356447948,1742461877552,-500.0,0.00033698,21]
[356447949,1742461877562,-500.0,0.00033698,21]
[356447950,1742461877572,-500.0,0.00033698,21]
[356447951,1742461877582,-1277.35,0.00033698,21]
[356447952,1742461877591,-500.0,0.00033698,21]
[356447953,1742461877601,-500.0,0.00033698,21]
[356447954,1742461877611,-612.1,0.00033698,21]
[356447955,1742461877820,-729.98,0.00033698,21]
[356447956,1742461877838,-500.0,0.00033698,21]
[356447957,1742461877848,-761.87,0.00033698,21]
[356447958,1742461877858,-536.94,0.00033698,21]
[356447959,1742461877867,-584.07,0.00033698,21]
[356447960,1742461877877,-500.0,0.00033698,21]
[356447961,1742461877886,-662.53,0.00033698,21]
[356447962,1742461877895,-500.0,0.00033698,21]
[356447963,1742461877905,-1192.63,0.00033698,21]
[356447964,1742461877914,-500.0,0.00033698,21]
[356447965,1742461877923,-500.0,0.00033698,21]
[356447966,1742461877933,-974.22,0.00033698,21]
[356447967,1742461877942,-691.33,0.00033698,21]
[356447968,1742461877951,-500.0,0.00033698,21]
[356447969,1742461877960,-500.0,0.00033698,21]
[356447970,1742461877970,-500.0,0.00033698,21]
[356447971,1742461877979,-342.28009384,0.00033698,21]
[356447972,1742461877988,-500.0,0.00033698,21]
[356447973,1742461877998,-614.26,0.00033698,21]
[356447974,1742461878007,-532.6924319,0.00033698,21]
[356447975,1742461878017,-500.0,0.00033698,21]
[356447976,1742461878026,-500.0,0.00033698,21]
[356447977,1742461878035,-500.0,0.00033698,21]
[356447978,1742461878045,-500.0,0.00033698,21]
[356447979,1742461878055,-753.03,0.00033698,21]
[356447980,1742461878064,-500.0,0.00033698,21]
[356447981,1742461878074,-500.0,0.00033698,21]
[356447982,1742461878084,-875.53,0.00033698,21]
[356447983,1742461878094,-500.0,0.00033698,21]
[356447984,1742461878103,-500.0,0.00033698,21]
[356447985,1742461878113,-1180.94,0.00033698,21]
[356447986,1742461878123,-500.0,0.00033698,21]
[356447987,1742461878133,-1130.54,0.00033698,21]
[356447988,1742461878142,-911.08,0.00033698,21]
[356447989,1742461878151,-558.15,0.00033698,21]
[356447990,1742461878161,-500.0,0.00033698,21]
[356447991,1742461878171,-557.57101077,0.00033698,21]
[356447992,1742461878181,-587.73505984,0.00033698,21]
[356447993,1742461878191,-500.0,0.00033698,21]
[356447994,1742461878201,-500.0,0.00033698,2]
[356447995,1742461878211,-500.0,0.00033698,21]
[356447996,1742461878221,-500.0,0.00033698,21]
[356447997,1742461878230,-732.77,0.00033698,21]
[356447998,1742461878240,-500.0,0.00033698,21]
[356447999,1742461878249,-641.16,0.00033698,21]
[356448000,1742461878258,-500.0,0.00033698,21]
[356448001,1742461878268,-2588.15,0.00033698,21]
[356448002,1742461878278,-305.25,0.00033698,7]
[356448003,1742461878287,-2770.24,0.00033698,21]
[356448004,1742461878297,-500.0,0.00033698,21]
[356448005,1742461878307,-655.48,0.00033698,21]
[356448006,1742461878317,-500.0,0.00033698,21]
[356448007,1742461878327,-1807.0,0.00033698,21]
[356448008,1742461878336,-500.0,0.00033698,21]
[356448009,1742461878346,-500.0,0.00033698,21]
[356448010,1742461878355,-1865.76,0.00033698,21]
[356448011,1742461878365,-1696.68,0.00033698,21]
[356448012,1742461878375,-500.0,0.00033698,21]
[356448013,1742461878384,-658.72,0.00033698,21]
[356448014,1742461878394,-500.0,0.00033698,21]
[356448015,1742461878404,-500.0,0.00033698,21]
[356448016,1742461878414,-500.0,0.00033698,21]
[356448017,1742461878423,-975.97,0.00033698,21]
[356448018,1742461878433,-500.0,0.00033698,21]
[356448019,1742461878442,-500.0,0.00033698,21]
[356448020,1742461878452,-733.17,0.00033698,21]
[356448021,1742461878462,-500.0,0.00033698,21]
[356448022,1742461878471,-500.0,0.00033698,21]
[356448023,1742461878481,-824.24,0.00033698,21]
[356448024,1742461878491,-903.13,0.00033698,21]
[356448025,1742461878501,-500.0,0.00033698,21]
[356448026,1742461878511,-2048.73,0.00033698,21]
[356448027,1742461878521,-2000.0,0.00033698,2]
[356448028,1742461878531,-621.17,0.00033698,21]
[356448029,1742461878540,-1685.17,0.00033698,21]
[356448030,1742461878550,-1596.9,0.00033698,21]
[356448031,1742461878560,-500.0,0.00033698,21]
[356448032,1742461878570,-500.0,0.00033698,21]
[356448033,1742461878580,-500.0,0.00033698,21]
[356448034,1742461878590,-500.0,0.00033698,21]
[356448035,1742461878599,-898.4,0.00033698,21]
[356448036,1742461878608,-500.0,0.00033698,21]
[356448037,1742461878618,-1000.0,0.00033698,21]
[356448038,1742461878627,-672.21,0.00033698,21]
[356448039,1742461878636,-1130.2,0.00033698,21]
[356448040,1742461878646,-687.1,0.00033698,21]
[356448041,1742461878655,-500.0,0.00033698,21]
[356448042,1742461878666,-1232.97,0.00033698,21]
[356448043,1742461878676,-500.0,0.00033698,21]
[356448044,1742461878686,-500.0,0.00033698,21]
[356448045,1742461878695,-500.0,0.00033698,21]
[356448046,1742461878705,-551.28944615,0.00033698,21]
[356448047,1742461878715,-500.0,0.00033698,21]
[356448048,1742461878730,-1859.15,0.00033698,21]
[356448049,1742461878740,-500.0,0.00033698,21]
[356448050,1742461878749,-500.0,0.00033698,21]
[356448051,1742461878760,-1253.26,0.00033698,21]
[356448052,1742461878771,-500.0,0.00033698,21]
[356448053,1742461878781,-687.5,0.00033698,21]
[356448054,1742461878791,-500.0,0.00033698,21]
[356448055,1742461878802,-500.0,0.00033698,21]
[356448056,1742461878812,-500.0,0.00033698,21]
[356448057,1742461878822,-500.0,0.00033698,21]
[356448058,1742461878831,-1207.88,0.00033698,21]
[356448059,1742461878840,-1961.79,0.00033698,21]
[356448060,1742461878850,-340.78763716,0.00033698,21]
[356448061,1742461878859,-781.15,0.00033698,21]
[356448062,1742461878869,-500.0,0.00033698,21]
[356448063,1742461878878,-500.0,0.00033698,21]
[356448064,1742461878888,-500.0,0.00033698,21]
[356448065,1742461878897,-500.0,0.00033698,21]
[356448066,1742461878907,-1061.76,0.00033698,21]
[356448067,1742461878917,-500.0,0.00033698,21]
[356448068,1742461878927,-1171.37,0.00033698,21]
[356448069,1742461878937,-500.0,0.00033698,21]
[356448070,1742461878947,-500.0,0.00033698,21]
[356448071,1742461878956,-736.59,0.00033698,21]
[356448072,1742461878966,-500.0,0.00033698,21]
[356448073,1742461878975,-500.0,0.00033698,21]
[356448074,1742461878985,-500.0,0.00033698,21]
[356448075,1742461878995,-500.0,0.00033698,21]
[356448076,1742461879005,-500.0,0.00033698,21]
[356448077,1742461879014,-500.0,0.00033698,21]
[356448078,1742461879024,-660.49,0.00033698,21]
[356448079,1742461879034,-1358.55,0.00033698,21]
[356448080,1742461879043,-609.52,0.00033698,21]
[356448081,1742461879053,-500.0,0.00033698,21]
[356448082,1742461879062,-1210.31,0.00033698,21]
[356448083,1742461879072,-1714.71,0.00033698,21]
[356448084,1742461879082,-2065.34,0.00033698,21]
[356448085,1742461879091,-500.0,0.00033698,21]
[356448086,1742461879102,-500.0,0.00033698,21]
[356448087,1742461879112,-500.0,0.00033698,21]
[356448088,1742461879122,-500.0,0.00033698,21]
[356448089,1742461879132,-500.0,0.00033698,21]
[356448090,1742461879142,-3075.26,0.00033698,2]
[356448091,1742461879151,-675.19,0.00033698,21]
[356448092,1742461879161,-500.0,0.00033698,21]
[356448093,1742461879172,-737.09,0.00033698,120]
[356448094,1742461879182,-500.0,0.00033698,21]
[356448095,1742461879192,-1851.11,0.00033698,21]
[356448096,1742461879203,-532.54660356,0.00033698,21]
[356448097,1742461879212,-500.0,0.00033698,21]
[356448098,1742461879222,-594.02409763,0.00033698,21]
[356448099,1742461879232,-2009.68,0.00033698,21]
[356448100,1742461879242,-500.0,0.00033698,21]
[356448101,1742461879252,-942.57,0.00033698,21]
[356448102,1742461879263,-500.0,0.00033698,21]
[356448103,1742461879272,-500.0,0.00033698,21]
[356448104,1742461879282,-964.88,0.00033698,21]
[356448105,1742461879292,-500.0,0.00033698,21]
[356448106,1742461879302,-2419.44,0.00033698,21]
[356448107,1742461879312,-500.0,0.00033698,21]
[356448108,1742461879323,-2542.88,0.00033698,21]
[356448109,1742461879333,-685.1,0.00033698,21]
[356448110,1742461879342,-1476.12,0.00033698,21]
[356448111,1742461879352,-500.0,0.00033698,21]
[356448112,1742461879362,-500.0,0.00033698,21]
[356448113,1742461879373,-1000.0,0.00033698,21]
[356448114,1742461879383,-500.0,0.00033698,21]
[356448115,1742461879394,-4351.88,0.00033698,21]
[356448116,1742461879404,-500.0,0.00033698,21]
[356448117,1742461879414,-500.0,0.00033698,21]
[356448118,1742461879424,-500.0,0.00033698,21]
[356448119,1742461879433,-650.64,0.00033698,21]
[356448120,1742461879444,-2530.87,0.00033698,21]
[356448121,1742461879453,-500.0,0.00033698,21]
[356448122,1742461879462,-500.0,0.00033698,21]
[356448123,1742461879472,-500.0,0.00033698,21]
[356448124,1742461879483,-500.0,0.00033698,21]
[356448125,1742461879492,-2689.17,0.00033698,21]
[356448126,1742461879502,-578.49,0.00033698,21]
[356448127,1742461879513,-500.0,0.00033698,21]
[356448128,1742461879522,-589.72,0.00033698,21]
[356448129,1742461879532,-500.0,0.00033698,21]
[356448130,1742461879543,-500.0,0.00033698,21]
[356448131,1742461879553,-1965.62,0.00033698,21]
[356448132,1742461879564,-996.84,0.00033698,21]
[356448133,1742461879574,-1943.3,0.00033698,21]
[356448134,1742461879584,-500.0,0.00033698,21]
[356448135,1742461879593,-1404.37,0.00033698,21]
[356448136,1742461879603,-500.0,0.00033698,21]
[356448137,1742461879612,-500.0,0.00033698,21]
[356448138,1742461879622,-1002.8,0.00033698,21]
[356448139,1742461879632,-1103.23,0.00033698,21]
[356448140,1742461879641,-4224.96,0.00033698,21]
[356448141,1742461879651,-500.0,0.00033698,21]
[356448142,1742461879661,-772.48,0.00033698,21]
[356448143,1742461879670,-500.0,0.00033698,21]
[356448144,1742461879680,-500.0,0.00033698,21]
[356448145,1742461879690,-1769.17,0.00033698,21]
[356448146,1742461879699,-4213.65,0.00033698,21]
[356448147,1742461879709,-2216.52,0.00033698,21]
[356448148,1742461879719,-558.58,0.00033698,21]
[356448149,1742461879731,-500.0,0.00033698,21]
[356448150,1742461879741,-500.0,0.00033698,7]
[356448151,1742461879751,-537.54,0.00033698,21]
[356448152,1742461879761,-500.0,0.00033698,21]
[356448153,1742461879771,-500.0,0.00033698,21]
[356448154,1742461879780,-1007.97,0.00033698,21]
[356448155,1742461879790,-500.0,0.00033698,21]
[356448156,1742461879800,-5141.99,0.00033698,21]
[356448157,1742461879810,-500.0,0.00033698,21]
[356448158,1742461879820,-500.0,0.00033698,21]
[356448159,1742461879829,-632.59,0.00033698,21]
[356448160,1742461879840,-500.0,0.00033698,21]
[356448161,1742461879849,-385.28574976,0.00033698,21]
[356448162,1742461879859,-955.84,0.00033698,21]
[356448163,1742461879869,-500.0,0.00033698,7]
[356448164,1742461879878,-605.08,0.00033698,21]
[356448165,1742461879888,-500.0,0.00033698,21]
[356448166,1742461879898,-645.24,0.00033698,21]
[356448167,1742461879907,-500.0,0.00033698,21]
[356448168,1742461879916,-486.18935874,0.00033698,21]
[356448169,1742461879926,-793.78,0.00033698,21]
[356448170,1742461879935,-1148.83,0.00033698,21]
[356448171,1742461879944,-500.0,0.00033698,21]
[356448172,1742461879953,-829.94,0.00033698,21]
[356448173,1742461879963,-500.0,0.00033698,21]
[356448174,1742461879973,-500.0,0.00033698,21]
[356448175,1742461879982,-500.0,0.00033698,21]
[356448176,1742461879991,-500.0,0.00033698,21]
[356448177,1742461880001,-500.0,0.00033698,21]
[356448178,1742461880011,-500.0,0.00033698,21]
[356448179,1742461880020,-500.0,0.00033698,21]
[356448180,1742461880029,-597.9,0.00033698,21]
[356448181,1742461880039,-2456.66,0.00033698,21]
[356448182,1742461880048,-500.0,0.00033698,21]
[356448183,1742461880057,-1085.47,0.00033698,21]
[356448184,1742461880067,-500.0,0.00033698,21]
[356448185,1742461880076,-1445.83,0.00033698,21]
[356448186,1742461880086,-649.77,0.00033698,21]
[356448187,1742461880095,-1355.11,0.00033698,21]
[356448188,1742461880105,-1787.39,0.00033698,21]
[356448189,1742461880116,-500.0,0.00033698,21]
[356448190,1742461880126,-2452.84,0.00033698,21]
[356448191,1742461880197,-1890.01,0.00033698,21]
[356448192,1742461880207,-1817.26,0.00033698,21]
[356448193,1742461880217,-1765.11,0.00033698,21]
[356448194,1742461880226,-500.0,0.00033698,21]
[356448195,1742461880235,-2034.71,0.00033698,21]
[356448196,1742461880244,-500.0,0.00033698,21]
[356448197,1742461880254,-500.0,0.00033698,21]
[356448198,1742461880262,-633.39,0.00033698,21]
[356448199,1742461880272,-500.0,0.00033698,21]
[356448200,1742461880281,-619.13,0.00033698,21]
[356448201,1742461880290,-500.0,0.00033698,21]
[356448202,1742461880299,-4514.15,0.00033698,21]
[356448203,1742461880309,-500.0,0.00033698,21]
[356448204,1742461880318,-1875.2,0.00033698,21]
[356448205,1742461880327,-500.0,0.00033698,21]
[356448206,1742461880337,-500.0,0.00033698,21]
[356448207,1742461880346,-500.0,0.00033698,21]
[356448208,1742461880355,-500.0,0.00033698,21]
[356448209,1742461880364,-2511.45,0.00033698,21]
[356448210,1742461880373,-2083.42,0.00033698,21]
[356448211,1742461880383,-166.21756476,0.00033698,21]
[356448212,1742461880392,-500.0,0.00033698,21]
[356448213,1742461880401,-802.76,0.00033698,21]
[356448214,1742461880411,-500.0,0.00033698,21]
[356448215,1742461880420,-894.41,0.00033698,21]
[356448216,1742461880429,-43428.33,0.00033698,21]
[356448217,1742461880439,-789.64,0.00033698,21]
[356448218,1742461880449,-500.0,0.00033698,21]
[356448219,1742461880459,-1166.99,0.00033698,21]
[356448220,1742461880468,-2100.8,0.00033698,21]
[356448221,1742461880477,-500.0,0.00033698,21]
[356448222,1742461880487,-500.0,0.00033698,21]
[356448223,1742461880497,-500.0,0.00033698,21]
[356448224,1742461880507,-5569.78,0.00033698,21]
[356448225,1742461880516,-500.0,0.00033698,21]
[356448226,1742461880527,-500.0,0.00033698,21]
[356448227,1742461880536,-500.0,0.00033698,21]
[356448228,1742461880546,-605.19023822,0.00033698,21]
[356448229,1742461880556,-982.83,0.00033698,21]
[356448230,1742461880566,-1203.67,0.00033698,21]
[356448231,1742461880576,-500.0,0.00033698,21]
[356448232,1742461880585,-512.04,0.00033698,21]
[356448233,1742461880595,-500.0,0.00033698,21]
[356448234,1742461880604,-500.0,0.00033698,21]
[356448235,1742461880613,-500.0,0.00033698,21]
[356448236,1742461880623,-1674.92,0.00033698,21]
[356448237,1742461880632,-157.89180375,0.00033698,21]
[356448238,1742461880642,-1096.74,0.00033698,21]
[356448239,1742461880651,-500.0,0.00033698,21]
[356448240,1742461880661,-500.0,0.00033698,21]
[356448241,1742461880670,-500.0,0.00033698,21]
[356448242,1742461880679,-916.01,0.00033698,21]
[356448243,1742461880689,-500.0,0.00033698,21]
[356448244,1742461880699,-500.0,0.00033698,21]
[356448245,1742461880708,-500.0,0.00033698,21]
[356448246,1742461880717,-500.0,0.00033698,21]
[356448247,1742461880731,-500.0,0.00033698,21]
[356448248,1742461880740,-500.0,0.00033698,21]
[356448249,1742461880750,-500.0,0.00033698,21]
[356448250,1742461880760,-509.9,0.00033698,21]
[356448251,1742461880770,-628.04,0.00033698,21]
[356448252,1742461880780,-500.0,0.00033698,21]
[356448253,1742461880789,-29745.15,0.00033698,21]
[356448254,1742461880800,-858.18,0.00033698,21]
[356448255,1742461880809,-500.0,0.00033698,21]
[356448256,1742461880818,-452.03066089,0.00033698,21]
[356448257,1742461880827,-500.0,0.00033698,21]
[356448258,1742461880837,-500.0,0.00033698,21]
[356448259,1742461880847,-895.78,0.00033698,21]
[356448260,1742461880856,-500.0,0.00033698,21]
[356448261,1742461880865,-20512.22,0.00033698,21]
[356448262,1742461880875,-500.0,0.00033698,21]
[356448263,1742461880884,-713.19,0.00033698,21]
[356448264,1742461880894,-568.8,0.00033698,21]
[356448265,1742461880903,-500.0,0.00033698,21]
[356448266,1742461880912,-1685.96,0.00033698,21]
[356448267,1742461880922,-1429.05,0.00033698,21]
[356448268,1742461880931,-500.0,0.00033698,21]
[356448269,1742461880940,-500.0,0.00033698,5]
[356448270,1742461880950,-14238.95,0.00033698,21]
[356448271,1742461880959,-1361.5,0.00033698,21]
[356448272,1742461880967,-616.78,0.00033698,21]
[356448273,1742461880977,-500.0,0.00033698,21]
[356448274,1742461880987,-1513.81,0.00033698,21]
[356448275,1742461880996,-500.0,0.00033698,21]
[356448276,1742461881006,-500.0,0.00033698,21]
[356448277,1742461881016,-813.05,0.00033698,21]
[356448278,1742461881025,-500.0,0.00033698,21]
[356448279,1742461881034,-500.0,0.00033698,21]
[356448280,1742461881043,-1329.65,0.00033698,21]
[356448281,1742461881053,-4411.74,0.00033698,21]
[356448282,1742461881062,-29088.67,0.00033698,21]
[356448283,1742461881071,-500.0,0.00033698,21]
[356448284,1742461881080,-233.41753015,0.00033698,21]
[356448285,1742461881090,-1213.41,0.00033698,21]
[356448286,1742461881101,-3019.51,0.00033698,21]
[356448287,1742461881111,-2345.85,0.00033698,21]
[356448288,1742461881120,-2144.99,0.00033698,21]
[356448289,1742461881129,-500.0,0.00033698,21]
[356448290,1742461881138,-500.0,0.00033698,21]
[356448291,1742461881147,-595.54,0.00033698,21]
[356448292,1742461881156,-858.07,0.00033698,21]
[356448293,1742461881165,-500.0,0.00033698,21]
[356448294,1742461881173,-500.0,0.00033698,21]
[356448295,1742461881182,-1338.74,0.00033698,21]
[356448296,1742461881191,-3639.61,0.00033698,21]
[356448297,1742461881200,-2885.85,0.00033698,21]
[356448298,1742461881209,-4768.03,0.00033698,21]
[356448299,1742461881219,-1145.34,0.00033698,21]
[356448300,1742461881227,-4146.59,0.00033698,21]
[356448301,1742461881236,-4197.92,0.00033698,21]
[356448302,1742461881246,-500.0,0.00033698,21]
[356448303,1742461881255,-500.0,0.00033698,21]
[356448304,1742461881265,-500.0,0.00033698,21]
[356448305,1742461881274,-1880.89,0.00033698,21]
[356448306,1742461881284,-500.0,0.00033698,21]
[356448307,1742461881293,-500.0,0.00033698,21]
[356448308,1742461881303,-2431.4,0.00033698,21]
[356448309,1742461881312,-854.97,0.00033698,21]
[356448310,1742461881321,-577.86945487,0.00033698,21]
[356448311,1742461881331,-1393.06,0.00033698,21]
[356448312,1742461881340,-500.0,0.00033698,21]
[356448313,1742461881349,-2356.21,0.00033698,21]
[356448314,1742461881358,-1379.3,0.00033698,21]
[356448315,1742461881367,-500.0,0.00033698,21]
[356448316,1742461881376,-7598.17,0.00033698,21]
[356448317,1742461881386,-500.0,0.00033698,21]
[356448318,1742461881396,-500.0,0.00033698,21]
[356448319,1742461881406,-500.0,0.00033698,21]
[356448320,1742461881418,-500.0,0.00033698,21]
[356448321,1742461881428,-500.0,0.00033698,21]
[356448322,1742461881440,-500.0,0.00033698,21]
[356448323,1742461881451,-721.68,0.00033698,21]
[356448324,1742461881460,-5457.08,0.00033698,21]
[356448325,1742461881470,-2123.07,0.00033698,21]
[356448326,1742461881480,-500.0,0.00033698,21]
[356448327,1742461881489,-2230.49,0.00033698,21]
[356448328,1742461881500,-1123.42,0.00033698,21]
[356448329,1742461881510,-1336.49,0.00033698,21]
[356448330,1742461881520,-500.0,0.00033698,21]
[356448331,1742461881529,-500.0,0.00033698,21]
[356448332,1742461881538,-1332.88,0.00033698,21]
[356448333,1742461881548,-535.14672201,0.00033698,21]
[356448334,1742461881557,-500.0,0.00033698,21]
[356448335,1742461881566,-500.0,0.00033698,21]
[356448336,1742461881575,-2478.09,0.00033698,21]
[356448337,1742461881584,-17110.58,0.00033698,21]
[356448338,1742461881593,-616.8478252,0.00033698,21]
[356448339,1742461881602,-500.0,0.00033698,21]
[356448340,1742461881611,-1435.35,0.00033698,21]
[356448341,1742461881620,-500.0,0.00033698,21]
[356448342,1742461881629,-500.0,0.00033698,21]
[356448343,1742461881638,-544.92,0.00033698,21]
[356448344,1742461881647,-1583.93,0.00033698,21]
[356448345,1742461881658,-500.0,0.00033698,21]
[356448346,1742461881669,-855.62,0.00033698,21]
[356448347,1742461881679,-1655.2,0.00033698,21]
[356448348,1742461881688,-2150.53,0.00033698,21]
[356448349,1742461881699,-4522.64,0.00033698,2]
[356448350,1742461881708,-34655.69,0.00033698,21]
[356448351,1742461881718,-1805.88,0.00033698,21]
[356448352,1742461881729,-500.0,0.00033698,21]
[356448353,1742461881738,-500.0,0.00033698,21]
[356448354,1742461881747,-500.0,0.00033698,21]
[356448355,1742461881756,-500.0,0.00033698,21]
[356448356,1742461881766,-731.26,0.00033698,21]
[356448357,1742461881777,-2192.81,0.00033698,21]
[356448358,1742461881785,-500.0,0.00033698,21]
[356448359,1742461881794,-500.0,0.00033698,21]
[356448360,1742461881805,-236.51048064,0.00033698,21]
[356448361,1742461881814,-500.0,0.00033698,21]
[356448362,1742461881823,-500.0,0.00033698,21]
[356448363,1742461881833,-868.49,0.00033698,21]
[356448364,1742461881843,-1390.84,0.00033698,21]
[356448365,1742461881855,-500.0,0.00033698,21]
[356448366,1742461881865,-500.0,0.00033698,21]
[356448367,1742461881874,-500.0,0.00033698,21]
[356448368,1742461881884,-2716.27,0.00033698,21]
[356448369,1742461881894,-500.0,0.00033698,21]
[356448370,1742461881904,-500.0,0.00033698,21]
[356448371,1742461881913,-500.0,0.00033698,21]
[356448372,1742461881924,-952.77,0.00033698,21]
[356448373,1742461881934,-500.0,0.00033698,21]
[356448374,1742461881944,-500.0,0.00033698,21]
[356448375,1742461881956,-8455.4,0.00033698,21]
[356448376,1742461881968,-658.62,0.00033698,21]
[356448377,1742461881979,-648.51,0.00033698,21]
[356448378,1742461881990,-500.0,0.00033698,21]
[356448379,1742461882002,-1588.05,0.00033698,21]
[356448380,1742461882012,-500.0,0.00033698,21]
[356448381,1742461882024,-500.0,0.00033698,21]
[356448382,1742461882035,-500.0,0.00033698,21]
[356448383,1742461882045,-660.08,0.00033698,21]
[356448384,1742461882056,-500.0,0.00033698,21]
[356448385,1742461882066,-500.0,0.00033698,21]
[356448386,1742461882077,-500.0,0.00033698,21]
[356448387,1742461882087,-721.56,0.00033698,21]
[356448388,1742461882099,-500.0,0.00033698,21]
[356448389,1742461882110,-500.0,0.00033698,21]
[356448390,1742461882120,-21878.22,0.00033698,21]
[356448391,1742461882131,-669.02,0.00033698,21]
[356448392,1742461882142,-1593.2,0.00033698,21]
[356448393,1742461882153,-500.0,0.00033698,21]
[356448394,1742461882163,-500.0,0.00033698,21]
[356448395,1742461882175,-500.0,0.00033698,21]
[356448396,1742461882186,-3580.82,0.00033698,21]
[356448397,1742461882196,-500.0,0.00033698,21]
[356448398,1742461882208,-500.0,0.00033698,21]
[356448399,1742461882218,-2807.59,0.00033698,21]
[356448400,1742461882228,-500.0,0.00033698,21]